fUST/lending_fUST_20250606
["ID","MTS","AMOUNT","RATE_DAILY","PERIOD"]
[364585116,1749151839768,-232.11194538,0.00023107,8]
[364585118,1749151839778,-440.0,0.00023117,2]
[364585120,1749151839787,-232.11194538,0.00023176,8]
[364585123,1749151839799,-232.11194538,0.00023245,8]
[364585125,1749151839808,-464.95,0.0002327,2]
[364585127,1749151839817,-232.11194538,0.00023314,9]
[364585129,1749151839826,-232.11194538,0.00023383,9]
[364585130,1749151839836,-440.0,0.00023391,2]
[364585132,1749151839845,-232.11194538,0.00023452,9]
[364585134,1749151839855,-232.11194538,0.00023521,9]
[364585136,1749151839865,-215.0738,0.00023551,2]
[364585138,1749151839874,-232.11194538,0.0002359,9]
[364585142,1749151839884,-4229.53369741,0.00023613,7]
[364585146,1749151839895,-232.11194538,0.00023659,9]
[364585147,1749151839905,-284.15000781,0.00023665,2]
[364585150,1749151839915,-232.11194538,0.00023728,9]
[364585154,1749151839925,-642.735353,0.00023795,3]
[364585156,1749151839937,-232.11194538,0.00023797,9]
[364585159,1749151839946,-500.0,0.00023799,2]
[364585162,1749151839955,-234.18945702,0.00023799,2]
[364585164,1749151839965,-465.55617025,0.00023799,2]
[364585166,1749151839974,-178.32664523,0.00023799,2]
[364585168,1749151839984,-222.57499057,0.00023799,2]
[364585170,1749151839993,-117794.66690462,0.000238,2]
[364585172,1749151840002,-230824.99602324,0.000238,3]
[364585174,1749151840011,-232.11194538,0.00023866,10]
[364585175,1749151840020,-150.0,0.000239,2]
[364585177,1749151840030,-158.154545,0.000239,3]
[364585179,1749151840039,-2225.0,0.00023911,2]
[364585181,1749151840048,-709.0,0.00023911,2]
[364585183,1749151840058,-405.0,0.00023911,2]
[364585185,1749151840067,-232.11194538,0.00023934,10]
[364585187,1749151840077,-232.11194538,0.00024003,10]
[364585190,1749151840088,-232.11194538,0.00024072,10]
[364585191,1749151840097,-2200.0,0.00024108,2]
[364585193,1749151840110,-232.11194538,0.00024141,10]
[364585196,1749151840122,-800.0,0.00024148,2]
[364585197,1749151840133,-2000.0,0.000242,2]
[364585199,1749151840143,-2000.0,0.000242,2]
[364585202,1749151840154,-2000.0,0.000242,2]
[364585204,1749151840163,-150.0,0.000242,5]
[364585206,1749151840172,-150.0,0.000242,30]
[364585208,1749151840181,-187.328088,0.000242,2]
[364585210,1749151840195,-232.11194538,0.0002421,10]
[364585213,1749151840206,-800.0,0.00024239,2]
[364585216,1749151840216,-560.47,0.00024261,3]
[364585219,1749151840225,-280.23,0.00024261,3]
[364585221,1749151840234,-840.73,0.00024261,3]
[364585226,1749151840244,-500.0,0.00024269,2]
[364585229,1749151840254,-12675.11581177,0.0002427,30]
[364585231,1749151840264,-315.01552021,0.0002427,30]
[364585233,1749151840273,-500.0,0.00024271,2]
[364585235,1749151840284,-500.0,0.00024271,2]
[364585237,1749151840293,-524.53037605,0.00024271,2]
[364585239,1749151840302,-423.7637613,0.00024271,3]
[364585241,1749151840312,-229.48950782,0.00024271,3]
[364585243,1749151840322,-160.0,0.00024271,3]
[364585245,1749151840332,-229.48950782,0.00024272,7]
[364585247,1749151840341,-315.01552021,0.00024272,30]
[364585249,1749151840351,-41585.51701974,0.00024272,2]
[364585251,1749151840360,-14131.34370225,0.00024272,3]
[364585253,1749151840370,-151.0,0.00024272,7]
[364585254,1749151840380,-200.0,0.00024272,7]
[364585256,1749151840390,-222.5428,0.00024272,7]
[364585258,1749151840399,-222.5428,0.00024272,7]
[364585260,1749151840410,-222.5428,0.00024272,7]
[364585262,1749151840420,-222.5428,0.00024272,7]
[364585264,1749151840430,-222.5428,0.00024272,7]
[364585266,1749151840444,-222.5428,0.00024272,7]
[364585268,1749151840453,-222.5428,0.00024272,7]
[364585270,1749151840463,-222.5428,0.00024272,7]
[364585272,1749151840472,-222.5428,0.00024272,7]
[364585274,1749151840482,-222.5428,0.00024272,7]
[364585276,1749151840492,-222.5428,0.00024272,7]
[364585278,1749151840501,-222.5428,0.00024272,7]
[364585280,1749151840511,-222.5428,0.00024272,7]
[364585282,1749151840520,-222.5428,0.00024272,7]
[364585284,1749151840529,-222.5428,0.00024272,7]
[364585286,1749151840538,-222.5428,0.00024272,7]
[364585288,1749151840547,-222.5428,0.00024272,7]
[364585290,1749151840556,-222.5428,0.00024272,7]
[364585292,1749151840565,-222.5428,0.00024272,7]
[364585294,1749151840574,-222.542808,0.00024272,7]
[364585296,1749151840583,-151.0,0.00024272,7]
[364585298,1749151840593,-151.0,0.00024272,7]
[364585300,1749151840602,-151.0,0.00024272,7]
[364585302,1749151840611,-151.0,0.00024272,7]
[364585303,1749151840619,-151.0,0.00024272,7]
[364585305,1749151840628,-151.0,0.00024272,7]
[364585307,1749151840637,-151.0,0.00024272,7]
[364585309,1749151840646,-151.0,0.00024272,7]
[364585311,1749151840655,-151.0,0.00024272,7]
[364585313,1749151840664,-243.93163,0.00024272,7]
[364585315,1749151840673,-227.001605,0.00024272,7]
[364585317,1749151840682,-151.0,0.00024272,7]
[364585318,1749151840691,-151.0,0.00024272,7]
[364585320,1749151840700,-151.0,0.00024272,7]
[364585322,1749151840709,-151.0,0.00024272,7]
[364585324,1749151840718,-299596.70048541,0.00024272,20]
[364585326,1749151840727,-1589.0,0.00024272,3]
[364585328,1749151840736,-1778.61110089,0.00024272,3]
[364585330,1749151840747,-40629.7245711,0.00024272,2]
[364585333,1749151840756,-460243.06728903,0.00024272,20]
[364585336,1749151840764,-10634.1184867,0.00024272,2]
[364585338,1749151840773,-463.43389082,0.00024272,7]
[364585340,1749151840782,-498.0,0.00024272,7]
[364585342,1749151840792,-152.985305,0.00024272,7]
[364585344,1749151840801,-904661.05886042,0.00024272,20]
[364585346,1749151840813,-156460.54974051,0.00024272,20]
[364585348,1749151840822,-321801.38493383,0.00024272,20]
[364585350,1749151840831,-192.36799687,0.00024272,12]
[364585352,1749151840840,-227037.61366311,0.00024272,20]
[364585354,1749151840850,-600.0,0.00024272,2]
[364585356,1749151840859,-1045392.95339186,0.00024272,20]
[364585358,1749151840871,-384863.85404921,0.00024272,20]
[364585360,1749151840881,-1093.91966062,0.00024272,20]
[364585371,1749151840980,-271.51400026,0.00024272,20]
[364585378,1749151841037,-3069.98020879,0.00024272,20]
[364585380,1749151841049,-610.40399336,0.00024272,20]
[364585382,1749151841059,-1497.36734159,0.00024272,20]
[364585387,1749151841094,-25600.0,0.00024272,20]
[364585739,1749151843784,-9771.33669059,0.00024272,20]
[364586794,1749151853513,-432.68775712,0.00022512,2]
[364586796,1749151853523,-219.65516975,0.00024262,10]
[364586888,1749151854514,-334.93483025,0.00024262,10]
[364586890,1749151854525,-2200.0,0.00024272,2]
[364586892,1749151854536,-1221.41540932,0.00024272,20]
[364587291,1749151858933,463.5,0.00025,120]
[364589481,1749152414664,2000.0,0.00017495,120]
[364589484,1749152825110,-150.0,0.00017268,2]
[364589485,1749152825130,-204.2136669,0.00017638,2]
[364589486,1749152825150,-19.53676194,0.00017736,2]
[364589488,1749152844001,160.424134,0.00013699,2]
[364589493,1749152947129,-150.0,0.000173,2]
[364589494,1749152947152,-244.46323806,0.00017736,2]
[364589495,1749152947172,-8548.9425713,0.00017737,2]
[364589496,1749152947192,-169.168555,0.00017809,2]
[364589497,1749152947214,-300.0,0.00018352,2]
[364589498,1749152947235,-300.0,0.00018352,2]
[364589499,1749152947255,-300.0,0.00018353,2]
[364589500,1749152947278,-440.0,0.00018356,2]
[364589501,1749152947302,-12.45030669,0.0001863,2]
[364589502,1749152947332,-229.87969331,0.0001863,2]
[364589503,1749152947352,-9632.20935076,0.0001863,2]
[364589504,1749152949142,-1916.97201324,0.0001863,2]
[364589505,1749152949164,-842.55250416,0.00018804,2]
[364589506,1749152949185,-150.0,0.00018838,2]
[364589507,1749152949205,-434.35808392,0.00018899,2]
[364589508,1749152949228,-440.0,0.00018899,2]
[364589509,1749152949251,-440.0,0.00018899,2]
[364589510,1749152949272,-440.0,0.00018899,2]
[364589511,1749152949295,-440.0,0.00018899,2]
[364589512,1749152949318,-440.0,0.00018899,2]
[364589513,1749152949341,-440.0,0.00018899,2]
[364589514,1749152949364,-440.0,0.00018899,2]
[364589515,1749152949387,-440.0,0.00018899,2]
[364589516,1749152949412,-440.0,0.00018899,2]
[364589517,1749152949435,-440.0,0.00018899,2]
[364589518,1749152949456,-150.0,0.000189,2]
[364589519,1749152949478,-440.0,0.0001894,2]
[364589520,1749152949506,-440.0,0.0001894,2]
[364589521,1749152949528,-440.0,0.0001894,2]
[364589522,1749152949550,-440.0,0.0001894,2]
[364589523,1749152949574,-440.0,0.0001894,2]
[364589524,1749152949598,-440.0,0.0001894,2]
[364589525,1749152949621,-502.58,0.0001894,2]
[364589526,1749152949642,-440.0,0.0001894,2]
[364589527,1749152949665,-430.0,0.0001894,2]
[364589528,1749152949688,-440.0,0.0001894,2]
[364589529,1749152949710,-24900.0,0.00018941,2]
[364589530,1749152949732,-5386.0850566,0.00018941,2]
[364589531,1749152949756,-440.0,0.00019173,2]
[364589532,1749152949779,-440.0,0.00019173,2]
[364589533,1749152949802,-440.0,0.00019173,2]
[364589534,1749152949826,-440.0,0.00019173,2]
[364589535,1749152949849,-440.0,0.00019173,2]
[364589536,1749152949873,-440.0,0.00019173,2]
[364589537,1749152949895,-295.2,0.00019173,2]
[364589538,1749152949926,-440.0,0.00019214,2]
[364589539,1749152949948,-440.0,0.00019214,2]
[364589540,1749152949970,-440.0,0.00019214,2]
[364589541,1749152949992,-440.0,0.00019214,2]
[364589542,1749152950014,-440.0,0.00019214,2]
[364589543,1749152950036,-440.0,0.00019214,2]
[364589544,1749152950059,-440.0,0.00019447,2]
[364589545,1749152950081,-440.0,0.00019447,2]
[364589546,1749152950103,-5.96666369,0.00019447,2]
[364589547,1749152950387,-967.4369131,0.000189,2]
[364589548,1749152950419,-967.43691299,0.00019107,2]
[364589549,1749152950445,-434.03333631,0.00019447,2]
[364589550,1749152950469,-174.93,0.00019447,2]
[364589551,1749152950496,-440.0,0.00019447,2]
[364589552,1749152950523,-288.12,0.00019447,2]
[364589553,1749152950549,-440.0,0.00019488,2]
[364589554,1749152950573,-385.29,0.00019488,2]
[364589555,1749152950598,-440.0,0.00019488,2]
[364589556,1749152950620,-440.0,0.00019488,2]
[364589557,1749152950644,-440.0,0.00019488,2]
[364589558,1749152950668,-842.55250411,0.00019572,2]
[364589559,1749152950689,-229.48950782,0.00019717,2]
[364589560,1749152950710,-423.7637613,0.00019717,2]
[364589561,1749152950731,-160.0,0.00019717,2]
[364589562,1749152950755,-440.0,0.00019721,2]
[364589563,1749152950779,-440.0,0.00019721,2]
[364589564,1749152950803,-440.0,0.00019721,2]
[364589565,1749152950826,-440.0,0.00019721,2]
[364589566,1749152950847,-12675.11581177,0.00019728,2]
[364589567,1749152950868,-212.94059491,0.00019728,2]
[364589568,1749152950888,-517.73729379,0.00019729,2]
[364589569,1749152950912,-440.0,0.00019729,2]
[364589570,1749152950932,-420.0,0.00019729,2]
[364589571,1749152950954,-440.0,0.00019729,2]
[364589572,1749152950975,-440.0,0.00019729,2]
[364589573,1749152950995,-430.0,0.00019729,2]
[364589574,1749152951015,-430.0,0.00019729,2]
[364589575,1749152951036,-390.0,0.00019729,2]
[364589576,1749152951057,-430.0,0.00019729,2]
[364589577,1749152951078,-440.0,0.00019729,2]
[364589578,1749152951099,-430.0,0.00019729,2]
[364589579,1749152951120,-440.0,0.00019729,2]
[364589580,1749152951141,-380.0,0.00019729,2]
[364589581,1749152951164,-133.27046392,0.00019729,2]
[364589582,1749152952189,-967.43691299,0.00019314,2]
[364589583,1749152952216,-967.43691299,0.00019521,2]
[364589584,1749152952242,-967.43691299,0.00019728,2]
[364589585,1749152952265,-27.27879392,0.00019729,2]
[364589586,1749152952294,-440.0,0.00019729,2]
[364589587,1749152952315,-440.0,0.00019729,2]
[364589588,1749152952339,-468.13,0.00019762,2]
[364589589,1749152952363,-285.37,0.00019762,2]
[364589590,1749152952391,-440.0,0.00019762,2]
[364589591,1749152952420,-440.0,0.00019762,2]
[364589592,1749152952444,-233.735,0.00019901,2]
[364589593,1749152952476,-967.43691299,0.00019934,2]
[364589594,1749152952505,-440.0,0.00019995,2]
[364589595,1749152952529,-294.82224435,0.00019995,2]
[364589596,1749152952554,-370.19,0.00019995,2]
[364589597,1749152952579,-440.0,0.00019995,2]
[364589598,1749152952600,-274.0,0.00020017,2]
[364589599,1749152952622,-42.24669655,0.00020036,2]
[364589600,1749152966090,-384.8170912,0.00020036,2]
[364589601,1749152966114,-492.26,0.00020036,2]
[364589602,1749152966141,-967.43691299,0.00020141,2]
[364589603,1749152966162,-160.424134,0.00020187,2]
[364589604,1749152966186,-446.58537457,0.00020192,2]
[364589605,1749152966209,-440.0,0.00020269,2]
[364589606,1749152966231,-440.0,0.00020269,2]
[364589607,1749152966252,-842.55250411,0.0002034,2]
[364589608,1749152966278,-694.29765935,0.00020348,3]
[364589609,1749153009132,-150.0,0.00017216,2]
[364589623,1749153032736,-440.0,0.00018356,2]
[364589625,1749153032746,-440.0,0.0001863,2]
[364589627,1749153032756,-150.0,0.00018781,2]
[364589629,1749153032766,-37.56713816,0.00018899,2]
[364589662,1749153038589,-402.43286184,0.00018899,2]
[364589664,1749153038599,-239.23,0.00018904,2]
[364589666,1749153038609,-440.0,0.00018939,2]
[364589668,1749153038620,-440.0,0.00018939,2]
[364589669,1749153038629,-440.0,0.0001894,2]
[364589671,1749153038638,-440.0,0.0001894,2]
[364589673,1749153038648,-440.0,0.00019213,2]
[364589675,1749153038658,-440.0,0.00019213,2]
[364589677,1749153038668,-440.0,0.00019214,2]
[364589679,1749153038678,-440.0,0.00019487,2]
[364589681,1749153038687,-440.0,0.00019487,2]
[364589683,1749153038696,-440.0,0.00019488,2]
[364589685,1749153038707,-440.0,0.00019761,2]
[364589688,1749153038717,-440.0,0.00019761,2]
[364589689,1749153038726,-575.24,0.00019762,2]
[364589691,1749153038737,-440.0,0.00020035,2]
[364589693,1749153038746,-440.0,0.00020035,2]
[364589695,1749153038755,-440.0,0.00020309,2]
[364589697,1749153038765,-440.0,0.00020309,2]
[364589699,1749153038774,-150.0,0.00020346,2]
[364589701,1749153038784,-273.13925364,0.00020348,3]
[364589703,1749153038794,-500.0,0.00020488,2]
[364589705,1749153038803,-967.43691299,0.00020555,3]
[364589707,1749153038812,-440.0,0.00020583,2]
[364589709,1749153038822,-440.0,0.00020583,2]
[364589711,1749153038831,-967.43691299,0.00020762,3]
[364589713,1749153038840,-960.38,0.000208,2]
[364589715,1749153038849,-440.0,0.00020857,2]
[364589717,1749153038859,-440.0,0.00020857,2]
[364589719,1749153038869,-967.43691299,0.00020969,4]
[364589721,1749153038878,-160.0,0.00020981,2]
[364589723,1749153038887,-315.01552021,0.00020994,2]
[364589725,1749153038897,-440.0,0.00021131,2]
[364589727,1749153038906,-440.0,0.00021131,2]
[364589729,1749153038915,-967.43691299,0.00021176,4]
[364589731,1749153038924,-967.43691299,0.00021383,5]
[364589733,1749153038934,-440.0,0.00021405,2]
[364589735,1749153038943,-440.0,0.00021405,2]
[364589737,1749153038952,-967.43691299,0.0002159,5]
[364589739,1749153038962,-440.0,0.00021679,2]
[364589741,1749153038971,-440.0,0.00021679,2]
[364589743,1749153038981,-967.43691299,0.00021797,6]
[364589745,1749153038990,-189.37,0.00021911,2]
[364589747,1749153038999,-440.0,0.00021953,2]
[364589749,1749153039008,-440.0,0.00021953,2]
[364589751,1749153039017,-967.43691299,0.00022003,6]
[364589753,1749153039026,-4512.37218656,0.00022182,2]
[364589755,1749153039035,-207.4,0.00022182,2]
[364589757,1749153039044,-7375.18665516,0.000222,69]
[364589758,1749153039053,-7375.18665513,0.000222,69]
[364589760,1749153039063,-7375.18665513,0.000222,69]
[364589761,1749153039072,-967.43691299,0.0002221,6]
[364589762,1749153039082,-440.0,0.00022227,2]
[364589763,1749153039091,-440.0,0.00022227,2]
[364589764,1749153039101,-960.38,0.000224,7]
[364589765,1749153039110,-967.43691299,0.00022417,7]
[364589766,1749153039120,-440.0,0.00022501,2]
[364589767,1749153039129,-440.0,0.00022501,2]
[364589768,1749153039138,-7375.18665513,0.00022562,70]
[364589769,1749153039148,-193.44643204,0.00022573,2]
[364589770,1749153039158,-500.0,0.00022589,2]
[364589771,1749153039167,-967.43691299,0.00022624,7]
[364589772,1749153039177,-440.0,0.00022775,2]
[364589773,1749153039186,-440.0,0.00022775,2]
[364589774,1749153039196,-967.43691299,0.00022831,8]
[364589775,1749153039205,-967.43691299,0.00023038,8]
[364589776,1749153039214,-500.43251548,0.00023049,2]
[364589777,1749153039223,-266.68,0.00023049,2]
[364589778,1749153039233,-1175.43,0.000231,2]
[364589779,1749153039242,-324.24,0.00023205,3]
[364589780,1749153039252,-967.43691299,0.00023245,8]
[364589781,1749153039262,-162.12,0.00023267,3]
[364589782,1749153039271,-486.36,0.00023267,3]
[364589783,1749153039281,-648.48,0.00023277,3]
[364589784,1749153039290,-504.14560111,0.00023336,2]
[364589785,1749153039300,-967.43691299,0.00023452,9]
[364589786,1749153039310,-236.71,0.00023476,2]
[364589787,1749153039320,-215.0738,0.00023551,2]
[364589788,1749153039330,-967.43691299,0.00023659,9]
[364589789,1749153039340,-578.461818,0.00023795,3]
[364589790,1749153039350,-960.38,0.000238,7]
[364589791,1749153039359,-967.43691299,0.00023866,10]
[364589792,1749153039369,-2225.0,0.00023911,2]
[364589793,1749153039379,-709.0,0.00023911,2]
[364589794,1749153039389,-748.10609411,0.00023959,2]
[364589795,1749153039398,-639.65,0.00024005,6]
[364589796,1749153039407,-967.43691299,0.00024072,10]
[364589797,1749153039417,-800.0,0.00024086,2]
[364589798,1749153039426,-800.0,0.00024123,2]
[364589799,1749153039435,-7375.18665513,0.00024179,77]
[364589800,1749153039445,-670.7,0.0002419,10]
[364589801,1749153039455,-558.91,0.0002419,10]
[364589802,1749153039464,-2200.0,0.00024198,2]
[364589803,1749153039473,-2000.0,0.000242,2]
[364589804,1749153039484,-2000.0,0.000242,2]
[364589805,1749153039494,-2000.0,0.000242,2]
[364589806,1749153039504,-150.0,0.000242,5]
[364589807,1749153039513,-250.0,0.000242,30]
[364589808,1749153039523,-187.328088,0.000242,2]
[364589809,1749153039534,-639.65,0.00024205,6]
[364589810,1749153039543,-842.5625,0.0002427,7]
[364589811,1749153039553,-151.0,0.0002427,7]
[364589812,1749153039562,-152.866879,0.0002427,7]
[364589813,1749153039572,-160.0,0.00024272,3]
[364589814,1749153039582,-842.5625,0.00024272,3]
[364589815,1749153039591,-160.0,0.00024272,7]
[364589816,1749153039600,-500.0,0.00024273,2]
[364589817,1749153039612,-500.0,0.00024273,2]
[364589818,1749153039623,-500.0,0.00024273,2]
[364589819,1749153039632,-500.0,0.00024278,2]
[364589820,1749153039642,-500.0,0.00024278,2]
[364589821,1749153039651,-524.53037605,0.00024278,2]
[364589822,1749153039660,-500.0,0.00024278,2]
[364589823,1749153039670,-254.20970362,0.00024278,2]
[364589824,1749153039679,-380.91974936,0.00024278,2]
[364589825,1749153039688,-500.0,0.00024278,2]
[364589826,1749153039699,-500.0,0.00024278,2]
[364589827,1749153039708,-500.0,0.00024278,2]
[364589828,1749153039717,-500.0,0.00024278,2]
[364589829,1749153039726,-500.0,0.00024278,2]
[364589830,1749153039737,-500.0,0.00024278,2]
[364589831,1749153039746,-500.0,0.00024278,2]
[364589832,1749153039756,-500.0,0.00024278,2]
[364589833,1749153039765,-267.97049397,0.00024278,2]
[364589834,1749153039775,-500.0,0.00024278,2]
[364589835,1749153039785,-500.0,0.00024278,2]
[364589836,1749153039794,-500.0,0.00024278,2]
[364589837,1749153039804,-500.0,0.00024278,2]
[364589838,1749153039813,-389.58142964,0.00024278,2]
[364589839,1749153039822,-500.0,0.00024278,2]
[364589840,1749153039831,-500.0,0.00024278,2]
[364589841,1749153039842,-500.0,0.00024278,2]
[364589842,1749153039851,-500.0,0.00024278,2]
[364589843,1749153039860,-500.0,0.00024278,2]
[364589844,1749153039869,-500.0,0.00024278,2]
[364589845,1749153039882,-500.0,0.00024278,2]
[364589846,1749153039894,-500.0,0.00024278,2]
[364589847,1749153039906,-580.4052967,0.00024278,2]
[364589848,1749153039918,-500.0,0.00024278,2]
[364589849,1749153039929,-500.0,0.00024278,2]
[364589850,1749153039941,-225.47855939,0.00024278,2]
[364589851,1749153039951,-500.0,0.00024278,2]
[364589852,1749153039961,-500.0,0.00024278,2]
[364589853,1749153039972,-500.0,0.00024278,2]
[364589854,1749153039984,-500.0,0.00024278,2]
[364589855,1749153039997,-500.0,0.00024278,2]
[364589856,1749153040007,-500.0,0.00024278,2]
[364589857,1749153040019,-500.0,0.00024278,2]
[364589858,1749153040030,-500.0,0.00024278,2]
[364589859,1749153040041,-500.0,0.00024278,2]
[364589860,1749153040053,-41585.51701974,0.00024279,2]
[364589861,1749153040064,-14131.34370225,0.00024279,3]
[364589862,1749153040075,-229.460376,0.00024279,7]
[364589863,1749153040087,-151.0,0.00024279,7]
[364589864,1749153040098,-227.001605,0.00024279,7]
[364589865,1749153040109,-151.0,0.00024279,7]
[364589866,1749153040119,-151.0,0.00024279,7]
[364589867,1749153040130,-151.0,0.00024279,7]
[364589868,1749153040141,-151.0,0.00024279,7]
[364589869,1749153040153,-151.0,0.00024279,7]
[364589870,1749153040163,-151.0,0.00024279,7]
[364589871,1749153040174,-151.0,0.00024279,7]
[364589872,1749153040185,-151.0,0.00024279,7]
[364589873,1749153040195,-151.0,0.00024279,7]
[364589874,1749153040205,-151.0,0.00024279,7]
[364589875,1749153040216,-151.0,0.00024279,7]
[364589876,1749153040227,-151.0,0.00024279,7]
[364589877,1749153040239,-243.93163,0.00024279,7]
[364589878,1749153040250,-222.5428,0.00024279,7]
[364589879,1749153040261,-222.5428,0.00024279,7]
[364589880,1749153040272,-222.5428,0.00024279,7]
[364589881,1749153040283,-222.5428,0.00024279,7]
[364589882,1749153040295,-222.5428,0.00024279,7]
[364589883,1749153040306,-222.5428,0.00024279,7]
[364589884,1749153040317,-222.5428,0.00024279,7]
[364589885,1749153040328,-222.5428,0.00024279,7]
[364589886,1749153040337,-222.5428,0.00024279,7]
[364589887,1749153040347,-222.5428,0.00024279,7]
[364589888,1749153040358,-222.5428,0.00024279,7]
[364589889,1749153040368,-222.5428,0.00024279,7]
[364589890,1749153040380,-222.5428,0.00024279,7]
[364589891,1749153040390,-222.5428,0.00024279,7]
[364589892,1749153040401,-222.5428,0.00024279,7]
[364589893,1749153040412,-222.5428,0.00024279,7]
[364589895,1749153040423,-222.5428,0.00024279,7]
[364589897,1749153040434,-222.5428,0.00024279,7]
[364589899,1749153040444,-222.5428,0.00024279,7]
[364589902,1749153040455,-222.542808,0.00024279,7]
[364589904,1749153040466,-151.0,0.00024279,7]
[364589906,1749153040477,-151.0,0.00024279,7]
[364589908,1749153040490,-151.0,0.00024279,7]
[364589910,1749153040502,-151.0,0.00024279,7]
[364589913,1749153040514,-151.0,0.00024279,7]
[364589915,1749153040527,-151.0,0.00024279,7]
[364589917,1749153040540,-151.0,0.00024279,7]
[364589919,1749153040550,-293.934596,0.00024279,7]
[364589921,1749153040562,-151.0,0.00024279,7]
[364589923,1749153040575,-151.0,0.00024279,7]
[364589925,1749153040585,-151.0,0.00024279,7]
[364589927,1749153040596,-262.941286,0.00024279,7]
[364589930,1749153040606,-151.0,0.00024279,7]
[364589932,1749153040617,-151.0,0.00024279,7]
[364589934,1749153040627,-151.0,0.00024279,7]
[364589936,1749153040636,-200.0,0.00024279,7]
[364589938,1749153040646,-151.0,0.00024279,7]
[364589940,1749153040656,-151.0,0.00024279,7]
[364589942,1749153040666,-151.0,0.00024279,7]
[364589944,1749153040677,-196.244923,0.00024279,7]
[364589946,1749153040690,-151.0,0.00024279,7]
[364589948,1749153040700,-175.614262,0.00024279,7]
[364589951,1749153040712,-151.0,0.00024279,7]
[364589953,1749153040723,-1654346.19212796,0.00024279,20]
[364589955,1749153040739,-1751484.86972618,0.00024279,20]
[364589958,1749153040758,-97181.59993156,0.00024279,20]
[364589961,1749153040771,-494.26443952,0.00024279,20]
[364589963,1749153040784,-59410.5517584,0.00024279,20]
[364589985,1749153041004,-151.0,0.00024279,7]
[364589987,1749153041015,-206.0058509,0.00024279,20]
[364589990,1749153041028,-2541.80000005,0.00024279,20]
[364589991,1749153041055,-3011.63042943,0.00024279,20]
[364589992,1749153041068,-588.5,0.00024279,20]
[364590243,1749153043768,-2394.658,0.00024279,2]
[364590244,1749153043779,-45321.58442989,0.00024279,20]
[364590562,1749153046805,-72044.29202929,0.00024279,20]
[364590564,1749153046815,-98574.88803777,0.00024279,2]
[364590566,1749153046826,-339654.08192954,0.00024279,20]
[364590568,1749153046839,-3173.81045408,0.00024279,20]
[364590711,1749153065663,150.0,0.00017775,2]
[364590714,1749153078521,24900.0,0.00017558,2]
[364590715,1749153140206,150.0,0.00017262,2]
[364590716,1749153155096,171.163,0.000172,2]
[364590717,1749153155118,29.78679533,0.000172,2]
[364590718,1749153197342,2327.0510536,0.00017829,2]
[364590719,1749153214013,150.0,0.00017219,2]
[364590720,1749153273611,160.38769545,0.00024279,120]
[364590721,1749153288124,150.0,0.00017514,2]
[364590722,1749153288224,181.8290686,0.00017714,2]
[364590723,1749153331751,292.9567591,0.00017745,2]
[364590724,1749153343513,-300.0,0.00018169,2]
[364590725,1749153343539,-1200.0,0.00018169,2]
[364590726,1749153343563,-187.0,0.00018169,2]
[364590727,1749153343585,-300.0,0.00018169,2]
[364590728,1749153343609,-300.0,0.00018169,2]
[364590729,1749153343633,-300.0,0.00018169,2]
[364590730,1749153343659,-1829.629,0.0001817,2]
[364590731,1749153343699,-4416.629,0.0001817,2]